{"text_format":"3","workbook":"xlsx","n_sheets":9,"sheets":["Section 001","Section 002","Section 101","Section 102","Section 107","Section 202","Section 903","Section 904","Summary"],"not_rendered":{"defined_names":10},"read":"whole","date_system":"1900"}

{"sheet":"Section 001","index":0,"n_rows":70,"n_cols":8,"rows_kept":70,"merged":[[35,0,35,6],[37,0,37,5],[37,6,37,7],[38,0,38,5],[38,6,38,7],[41,0,41,6],[67,0,67,6],[69,0,69,5],[69,6,69,7],[70,0,70,5],[70,6,70,7]]}
["ITEM","LI","PAYMENT","DESCRIPTION","UNIT","QTY","RATE","AMOUNT"]
[]
["SERIES 0",null,"SANS 1200A","GENERAL"]
[]
["Section 001",null,null,"General Requirements and Charges"]
[]
["001.01",null,"8.12","Preliminary and General Charges"]
[]
["001.01.01",null,"8.2.1","Fixed charges ( R 200 000 Max)","lump sum","-","-"]
[]
["001.02",null,"8.8.4","Locating Existing Services","m³",15,null,{"$f":"IF(TRIM(F11)=\"rate only\",\"ro\",IF(OR(ISBLANK(F11),ISBLANK(G11)),\" \",F11*G11))","v":" "}]
[]
[]
["001.03","LI","8.8.4 c)","Excavate by hand to expose existing ","m³",5]
[{"$nulls":3},"services and backfill",{"$nulls":3},{"v":0,"d":"R 0.00"}]
[]
["001.04",null,"B8.8.5","Compliance with the Occupational"]
[{"$nulls":3},"Health and Safety Act and applicable"]
[{"$nulls":3},"regulations"]
[]
["001.04.01",null,null,"Provision of a Health and Safety Plan","month",36,null,{"$f":"IF(TRIM(F21)=\"rate only\",\"ro\",IF(OR(ISBLANK(F21),ISBLANK(G21)),\" \",F21*G21))","v":" "}]
[]
["001.04.02",null,null,"Provision of a Health and Safety File","month",36,null,{"$f":"IF(TRIM(F23)=\"rate only\",\"ro\",IF(OR(ISBLANK(F23),ISBLANK(G23)),\" \",F23*G23))","v":" "}]
[]
["001.04.04",null,null,"Provision of a safety officer-","month",36]
[]
["001.04.05",null,null,"Health and safety training","month",3,null,{"$f":"IF(TRIM(F27)=\"rate only\",\"ro\",IF(OR(ISBLANK(F27),ISBLANK(G27)),\" \",F27*G27))","v":" "}]
[]
["001.04.06",null,null,"Provision of personal protective","Per worker/ month",11,null,{"$f":"IF(TRIM(F29)=\"rate only\",\"ro\",IF(OR(ISBLANK(F29),ISBLANK(G29)),\" \",F29*G29))","v":" "}]
[{"$nulls":3},"clothing and equipment"]
[]
["001.04.07",null,null,"Provision of safety fences, signs and","Per site/",36]
[{"$nulls":3},"barricades","Month",null,null,{"$f":"IF(TRIM(F33)=\"rate only\",\"ro\",IF(OR(ISBLANK(F33),ISBLANK(G33)),\" \",F33*G33))","v":" "}]
[]
[]
["TOTAL CARRIED FORWARD",{"$nulls":6},{"$f":"SUM(H2:H35)","v":{"v":0,"d":"R 0.00"}}]
[]
["Signature of person authorised to sign the tender:",{"$nulls":5},"Date"]
[]
[]
["ITEM",null,null,"DESCRIPTION","UNIT","QTY","RATE","AMOUNT"]
["TOTAL BROUGHT FORWARD",{"$nulls":6},{"$f":"H36","v":{"v":0,"d":"R 0.00"}}]
[]
["001.04.08",null,null,"Other obligations"]
[]
["B001.04.08.01",null,null,"Traffic Accomodation as per SARTSM Vol 2 ","km",10,null,{"$f":"IF(TRIM(F46)=\"rate only\",\"ro\",IF(OR(ISBLANK(F46),ISBLANK(G46)),\" \",F46*G46))","v":" "}]
[{"$nulls":3},"Chapter 13"]
[]
["B001.06",null,"B8.8.6","Provision of Site Security "]
[]
["B001.06.01",null,null,"On-Site Security","pm",36,null,{"$f":"G51*F51","v":{"v":0,"d":"R 0.00"}}]
[]
["B001.06.02",null,null,"Night Time Lighting","h",240]
[]
["B001.07",null,"B8.8.7","Making use of Approved  sub-Contractor"]
[]
["B001.07.01",null,null,"Making use of sub-Contractor","-","Prov Sum","R1 000 000.00","R1 000 000.00"]
[]
["B001.07.02",null,null,"Percentage on item B001.07.01 for ",{"v":1000000,"d":"R 1,000,000.00"},"%"]
[{"$nulls":3},"charges & profit ( 10% Max)"]
{"$rows_empty":7}
["TOTAL CARRIED TO SUMMARY",{"$nulls":6},{"$f":"SUM(H42:H67)","v":{"v":0,"d":"R 0.00"}}]
[]
["Signature of person authorised to sign the tender:",{"$nulls":5},"Date"]

{"sheet":"Section 002","index":1,"n_rows":65,"n_cols":6,"rows_kept":65,"merged":[[62,0,62,4],[64,0,64,3],[64,4,64,5],[65,0,65,3],[65,4,65,5]]}
["ITEM","DESCRIPTION","UNIT","QTY","RATE","AMOUNT"]
[]
["SERIES 0","GENERAL"]
[]
["B002.05","Provision of software and hardware equipment "]
[null,"for Traffic Monitoring ",{"$nulls":3},{"$f":"IF(TRIM(D6)=\"rate only\",\"ro\",IF(OR(ISBLANK(D6),ISBLANK(E6)),\" \",D6*E6))","v":" "}]
[]
["B002.05.01","GPRS modem programmed for the City","no",30]
[null,"of Tshwane APN for every traffic monitoring "]
[null,"site"]
[]
["B002.05.02","Intersection manual traffic counting video recorder with stand ","no",2]
[null,"or similar (See C3.4.1.3)"]
[]
["B002.05.03","Configuration and set-up of site data base","Lump Sum",1]
[]
["B002.05.04","Software, equipment and support (Supply, "]
[null,"repairs add Installation)"]
[]
["B002.05.04.01","Eight lanes traffic monitoring logger with all terminals and cables and connectors  (See Table 1 in C3.4.1.4)","no",24]
[]
["B002.05.04.02","Remote automated data extraction software license for eight lanes traffic monitoring logger with GPRS Support","no",1]
[]
["B002.05.04.03","Data management and reporting software license for eight lanes traffic monitoring logger","no",1]
[]
["B002.05.04.04","Field Software for data extraction for eight lanes traffic monitoring logger","no",1]
[]
["B002.05.04.05","The updating of GPRSTel server license","no",2]
[null,"(See C3.4.1.3)"]
[]
["B002.05.04.06","Updating of a TelDialer software license ","no",2]
[null,"(See C3.4.1.3)"]
[]
["B002.05.04.07","Updating of a TrafBase software license ","no",2]
[null,"(See C3.4.1.3)"]
[]
["B002.05.04.08","Video traffic recording and monitoring software ","no",2]
[null,"license (See C3.4.1.3)"]
[]
["B002.05.04.09","Upgrading of a MoniCar software license ","no",2]
[null,"(See C3.4.1.3)"]
[]
["B002.05.04.10","Training, support and updates of all software for ","lump Sum",1," "," "]
[" ","36 months"," "," "," "," "]
[]
["B002.05.04.11","Steel/ Minitanic Housing Box (steel sheet metal)","no",15]
[null,"with 70mm disc padlocks"]
[]
[]
["B002.05.04.12","Repair of RAKTEL 1010, Tel 2RT, Raktel 2000, Raktel 4000","no",40]
[]
["B002.05.04.13","Terminals and cables and connectors for Raktel  (See Table 1 in C3.4.1.4)","no ",40]
[]
["B002.05.04.14","Stick-on loop 2,5 x 1 m (5 m feeder) ","no",60]
[null,"Includes 8 x 4m rolls for feeder"]
[]
["B002.05.04.15","Additional feeder length ","m",300]
[]
["B002.05.04.16","Additional feeder rolls (per 4m)","no",60]
[]
["B002.05.04.17","Tally counters","no",100]
[]
["TOTAL CARRIED TO SUMMARY",{"$nulls":4},{"$f":"SUM(F2:F62)","v":{"v":0,"d":"R 0.00"}}]
[]
["Signature of person authorised to sign the tender:",{"$nulls":3},"Date"]

{"sheet":"Section 101","index":2,"n_rows":66,"n_cols":8,"rows_kept":66,"merged":[[29,0,29,6],[31,0,31,5],[32,0,32,5],[33,0,33,6],[63,0,63,6],[65,0,65,5],[66,0,66,5]]}
["ITEM","LI","PAYMENT","DESCRIPTION","UNIT","QTY","RATE","AMOUNT"]
[]
["SERIES 1",null,null,"ANCILLARY WORK"]
[]
["Section 101",null,"SANS 1200C","Site Clearing and Grubbing"]
[]
["101.01",null,"8.7.1","Clearing and grubbing"]
[]
["101.01.01",null,"B8.7.1.1","Strips"]
[]
["101.01.01.01","LI","B8.7.1.2","Width indicated (up to 50m wide road reserve)","m2",600,null,{"$f":"IF(TRIM(F11)=\"rate only\",\"ro\",IF(OR(ISBLANK(F11),ISBLANK(G11)),\" \",F11*G11))","v":" "}]
[]
[]
["101.01.02","LI","B8.7.1.3","Areas not classified as strips","m²",200,null,{"$f":"IF(TRIM(F14)=\"rate only\",\"ro\",IF(OR(ISBLANK(F14),ISBLANK(G14)),\" \",F14*G14))","v":" "}]
[]
["101.02",null,"8.2.2","Cutting and removing large trees"]
[{"$nulls":3},"with a girth -"]
[]
["101.02.01","LI","8.2.2 (a)","exceeding 1m and up to and","no",2,null,{"$f":"IF(TRIM(F19)=\"rate only\",\"ro\",IF(OR(ISBLANK(F19),ISBLANK(G19)),\" \",F19*G19))","v":" "}]
[{"$nulls":3},"including 2m"]
[]
[]
["101.03",null,"8.2.3","Grubbing and the removal of the"]
[{"$nulls":3},"stumps and roots of large trees with"]
[{"$nulls":3},"girth -"]
[]
["101.03.01","LI","8.2.3 (a)","exceeding 1m and up to and","no",2,null,{"$f":"IF(TRIM(F27)=\"rate only\",\"ro\",IF(OR(ISBLANK(F27),ISBLANK(G27)),\" \",F27*G27))","v":" "}]
[{"$nulls":3},"including 2m"]
[]
["TOTAL CARRIED FORWARD",{"$nulls":6},{"$f":"SUM(H2:H29)","v":{"v":0,"d":"R 0.00"}}]
[]
["Signature of person authorised to sign the tender:",{"$nulls":5},"Date"]
[]
["TOTAL BROUGHT FORWARD",{"$nulls":6},{"$f":"H30","v":{"v":0,"d":"R 0.00"}}]
["101.05",null,"B8.2.4","Removal and disposal of specific"]
[{"$nulls":3},"elements"]
[]
["101.05.01",null,null,"Concrete kerbing / kerbing "]
[{"$nulls":3},"combinations","m",50,null,{"$f":"IF(TRIM(F39)=\"rate only\",\"ro\",IF(OR(ISBLANK(F39),ISBLANK(G39)),\" \",F39*G39))","v":" "}]
[]
["101.05.02",null,null,"Concrete or brick elements"]
[{"$nulls":3},"(reinforced or unreinforced)"]
[]
["101.05.02.01","LI",null,"230mm brickwork","m²",20,null,{"$f":"IF(TRIM(F44)=\"rate only\",\"ro\",IF(OR(ISBLANK(F44),ISBLANK(G44)),\" \",F44*G44))","v":" "}]
[]
["101.05.02.02","LI",null,"115mm brickwork","m²",20,null,{"$f":"IF(TRIM(F46)=\"rate only\",\"ro\",IF(OR(ISBLANK(F46),ISBLANK(G46)),\" \",F46*G46))","v":" "}]
[]
["101.05.02.04",null,null,"Concrete elements (unreinforced)","m³",5,null,{"$f":"IF(TRIM(F48)=\"rate only\",\"ro\",IF(OR(ISBLANK(F48),ISBLANK(G48)),\" \",F48*G48))","v":" "}]
[]
["101.05.02.05",null,null,"Concrete elements (reinforced)","m³",5,null,{"$f":"IF(TRIM(F50)=\"rate only\",\"ro\",IF(OR(ISBLANK(F50),ISBLANK(G50)),\" \",F50*G50))","v":" "}]
[]
["101.05.03",null,null,"Asphalt surfacing","m²",5,null,{"$f":"IF(TRIM(F52)=\"rate only\",\"ro\",IF(OR(ISBLANK(F52),ISBLANK(G52)),\" \",F52*G52))","v":" "}]
[]
[" B101.05.04","LI",null,"Interlocking / non-interlocking","m²",30,null,{"$f":"IF(TRIM(F54)=\"rate only\",\"ro\",IF(OR(ISBLANK(F54),ISBLANK(G54)),\" \",F54*G54))","v":" "}]
[{"$nulls":3},"paving blocks"]
{"$rows_empty":8}
["TOTAL CARRIED TO SUMMARY",{"$nulls":6},{"$f":"SUM(H34:H63)","v":{"v":0,"d":"R 0.00"}}]
[]
["Signature of person authorised to sign the tender:",{"$nulls":5},"Date"]

{"sheet":"Section 102","index":3,"n_rows":14,"n_cols":7,"rows_kept":14,"merged":[[11,0,11,5],[13,0,13,4],[13,5,13,6],[14,0,14,4],[14,5,14,6]]}
["ITEM","LI","DESCRIPTION","UNIT","QTY","RATE","AMOUNT"]
[]
["SERIES 1",null,"ANCILLARY WORK"]
[]
["Section 102:",null,"Accommodation of Traffic"]
[]
["102.01",null,"Accommodation of traffic and"]
[null,null,"maintenance of bypasses","m",{"v":1500,"d":"1,500"},null,{"$f":"IF(TRIM(E8)=\"rate only\",\"ro\",IF(OR(ISBLANK(E8),ISBLANK(F8)),\" \",E8*F8))","v":" "}]
[]
["102.09",null,"Traffic lights","prov sum",1,null,{"$f":"IF(TRIM(E10)=\"rate only\",\"ro\",IF(OR(ISBLANK(E10),ISBLANK(F10)),\" \",E10*F10))","v":" "}]
[]
["TOTAL CARRIED FORWARD",{"$nulls":5},{"$f":"SUM(G2:G11)","v":{"v":0,"d":"R 0.00"}}]
[]
["Signature of person authorised to sign the tender:",{"$nulls":4},"Date"]

{"sheet":"Section 107","index":4,"n_rows":56,"n_cols":8,"rows_kept":56,"merged":[[41,4,41,5],[42,4,42,5],[55,0,55,3],[55,4,55,5],[56,0,56,3],[56,4,56,5]]}
["ITEM","DESCRIPTION","UNIT","QTY","RATE","AMOUNT"]
[]
["SERIES 1","ANCILLARY WORK"]
[]
["Section B107","Dayworks"]
[]
["B107.01","Labour during normal working hours "]
[]
["B107.01.01","Unskilled labour","h",1,null,{"$f":"IF(TRIM(D9)=\"rate only\",\"ro\",IF(OR(ISBLANK(D9),ISBLANK(E9)),\" \",D9*E9))","v":" "}]
[]
["B107.01.02","Semi-skilled labour","h",1,null,{"$f":"IF(TRIM(D11)=\"rate only\",\"ro\",IF(ISBLANK(E11),\" \",D11*E11))","v":" "}]
[]
["B107.01.03","Skilled labour","h",1,null,{"$f":"IF(TRIM(D13)=\"rate only\",\"ro\",IF(ISBLANK(E13),\" \",D13*E13))","v":" "}]
[]
[]
["B107.02","Extra-over item B107.02 for charges"]
[null,"and overheads"]
[]
["B107.02.01","Unskilled labour","%",10,null,{"$f":"IF(TRIM(D19)=\"rate only\",\"ro\",IF(ISBLANK(E19),\" \",D19*E19))","v":" "}]
[]
["B107.02.02","Semi-skilled labour","%",10,null,{"$f":"IF(TRIM(D21)=\"rate only\",\"ro\",IF(ISBLANK(E21),\" \",D21*E21))","v":" "}]
[]
["B107.02.03","Skilled labour","%",10,null,{"$f":"IF(TRIM(D23)=\"rate only\",\"ro\",IF(ISBLANK(E23),\" \",D23*E23))","v":" "}]
[]
[]
["B107.03","Construction Plant"]
[]
["B107.03.01","Concrete floor saw cutter","h",1,null,{"$f":"IF(TRIM(D28)=\"rate only\",\"ro\",IF(ISBLANK(E28),\" \",D28*E28))","v":" "}]
[]
["B107.03.02","230mm angle grinder","h",1,null,{"$f":"IF(TRIM(D30)=\"rate only\",\"ro\",IF(ISBLANK(E30),\" \",D30*E30))","v":" "}]
[]
["B107.03.03","Wacker trench rammer","h",1,null,{"$f":"IF(TRIM(D32)=\"rate only\",\"ro\",IF(ISBLANK(E32),\" \",D32*E32))","v":" "}]
[]
["B107.03.04","500 litres portable water tank","h",1,null,{"$f":"IF(TRIM(D34)=\"rate only\",\"ro\",IF(ISBLANK(E34),\" \",D34*E34))","v":" "}]
[]
["B107.03.05","500 W portable floodlight (2 x 900lm) with tripod adjustable stand     ","h",1,null,{"$f":"IF(TRIM(D36)=\"rate only\",\"ro\",IF(ISBLANK(E36),\" \",D36*E36))","v":" "}]
[]
["B107.03.06","Utility locating equipment","h",1,null,{"$f":"IF(TRIM(D38)=\"rate only\",\"ro\",IF(ISBLANK(E38),\" \",D38*E38))","v":" "}]
[]
["TOTAL CARRIED FORWARD",{"$nulls":4},{"$f":"SUM(F2:F37)","v":{"v":0,"d":"R 0.00"}}]
[]
["Signature of person authorised to sign the tender:",{"$nulls":3},"Date"]
[]
[]
["ITEM","DESCRIPTION","UNIT","QTY","RATE","AMOUNT"]
["TOTAL BROUGHT FORWARD",{"$nulls":4},{"$f":"F40","v":{"v":0,"d":"R 0.00"}}]
[]
["B107.03.08","Concrete Mixer (250 litre)","h",1,null,{"$f":"IF(TRIM(D48)=\"rate only\",\"ro\",IF(ISBLANK(E48),\" \",D48*E48))","v":" "}]
[]
["B107.04","Transport of Construction Plant"]
[{"$nulls":7},{"$f":"SUM(F46:F50)","v":{"v":0,"d":"R 0.00"}}]
["B107.04.01","Flatbed truck (2 - 4 ton)","km",1,null,{"$f":"IF(TRIM(D52)=\"rate only\",\"ro\",IF(ISBLANK(E52),\" \",D52*E52))","v":" "}]
[]
["TOTAL CARRIED FORWARD"]
[]
["Signature of person authorised to sign the tender:"]

{"sheet":"Section 202","index":5,"n_rows":18,"n_cols":7,"rows_kept":18,"merged":[[17,0,17,4],[17,5,17,6],[18,0,18,4],[18,5,18,6]]}
["ITEM","LI","DESCRIPTION","UNIT","QTY","RATE","AMOUNT"]
[]
["SERIES 2",null,"EARTHWORKS"]
[]
["Section 202",null,"Trenching"]
[]
["202.01",null,"Trench excavation "]
[]
["B202.01.01","LI","Up to 0,3m wide"]
[]
["B202.01.01.01","LI","Up to 0,5m deep","m³",190,null,{"$f":"IF(TRIM(E11)=\"rate only\",\"ro\",IF(OR(ISBLANK(E11),ISBLANK(F11)),\" \",E11*F11))","v":" "}]
[]
["202.03","LI","Excavations outside the normal","m³",144]
[null,null," trench profile"]
[]
["TOTAL CARRIED FORWARD",{"$nulls":5},{"$f":"SUM(G2:G15)","v":{"v":0,"d":"R 0.00"}}]
[]
["Signature of person authorised to sign the tender:",{"$nulls":4},"Date"]

{"sheet":"Section 903","index":6,"n_rows":52,"n_cols":6,"rows_kept":52,"merged":[[49,0,49,4],[51,0,51,3],[51,4,51,5],[52,0,52,3],[52,4,52,5]]}
["ITEM","DESCRIPTION","UNIT","QTY","RATE","AMOUNT"]
[]
["SERIES 9","QUALITY CONTROL"]
[]
["Section 903","Testing and Issuing Certificates"]
[]
["B903.01","Provision for testing of traffic monitoring "]
[null,"sites"]
[]
["B903.01.01","Loop Testing "]
[null,"(Analogue megger insulation test)","no",28,null,{"$f":"IF(TRIM(D11)=\"rate only\",\"ro\",IF(OR(ISBLANK(D11),ISBLANK(E11)),\" \",D11*E11))","v":" "}]
[]
["B903.01.02","Digital Multimeter testing","no",28,null,{"$f":"IF(TRIM(D13)=\"rate only\",\"ro\",IF(ISBLANK(E13),\" \",D13*E13))","v":" "}]
[]
["B903.01.06","Documentation, testing and ","no",28]
[null,"Certification"]
{"$rows_empty":33}
["TOTAL CARRIED FORWARD",{"$nulls":4},{"$f":"SUM(F2:F49)","v":{"v":0,"d":"R 0.00"}}]
[]
["Signature of person authorised to sign the tender:",{"$nulls":3},"Date"]

{"sheet":"Section 904","index":7,"n_rows":70,"n_cols":6,"rows_kept":70,"merged":[[67,0,67,4],[69,0,69,3],[69,4,69,5]]}
["ITEM","DESCRIPTION","UNIT","QTY","RATE","AMOUNT"]
[]
["SERIES 9","Construction of Traffic Monitoring Sites"]
[]
["Section 904","Automatic Traffic Monitoring Sites"]
[]
["B904.01","Automatic Traffic Monitoring Sites"]
[]
["B904.01.01","Constructon of a complete 2 lane "]
[null,"Traffic Monitoring sites Automatic ","no",10,null,{"$f":"IF(TRIM(D10)=\"rate only\",\"ro\",IF(OR(ISBLANK(D10),ISBLANK(E10)),\" \",D10*E10))","v":" "}]
[null,"2 loops per lane with GPS coordinates "]
[null,"(See Annexure 4)"]
[]
["B904.01.02","Constructon of a complete 3 lane "]
[null,"Traffic Monitoring sites Automatic ","no",5,null,{"$f":"IF(TRIM(D15)=\"rate only\",\"ro\",IF(ISBLANK(E15),\" \",D15*E15))","v":" "}]
[null,"2 loops per lane with GPS coordinates"]
[null,"(See Annexure 4)"]
[]
["B904.01.03","Constructon of a complete 4 lane ","no",20,null,{"$f":"IF(TRIM(D19)=\"rate only\",\"ro\",IF(ISBLANK(E19),\" \",D19*E19))","v":" "}]
[null,"Traffic Monitoring sites Automatic "]
[null,"2 loops per lane with GPS coordinates"]
[null,"(See Annexure 4)"]
[]
["B904.01.04","Constructon of a complete 5 lane ","no",5,null,{"$f":"IF(TRIM(D24)=\"rate only\",\"ro\",IF(ISBLANK(E24),\" \",D24*E24))","v":" "}]
[null,"Traffic Monitoring sites Automatic "]
[null,"2 loops per lane with GPS coordinates"]
[null,"(See Annexure 4)"]
[]
["B904.01.05","Constructon of a complete 6 lane ","no",5]
[null,"Traffic Monitoring sites Automatic "]
[null,"2 loops per lane with GPS coordinates"]
[null,"(See Annexure 4)"]
[]
["B904.01.06","Constructon of a complete 8 lane ","no",5]
[null,"Traffic Monitoring sites Automatic "]
[null,"2 loops per lane with GPS coordinates"]
[]
[null,"(See Annexure 4)"]
["B904.01.07","Installation of housing gulley","no",60]
[]
["B904.01.08","Placing of ducting in junction boxes","no",100]
[null,"(between 2 and 3 per station)"]
[]
["B904.01.09","Concrete Housing Base (See Diagram 6)","no",10]
[]
["B904.01.10","Building of a complete automatic traffic monitoring ","no",14]
[null,"housing manhole with two bollards (see diagram 7)"]
[]
["B904.01.11","Repair of one loop per lane","no",10]
[]
["B904.01.12","Repair of two loops per lane","no",10]
[]
["B904.02","Power supply"]
[]
[]
["B904.02.01","50W Mono/Poly crystalline solar power supply clamped to the","no",18,null,{"$f":"E56*D56","v":{"v":0,"d":"R 0.00"}}]
[null,"three-meter-high stainless-steel pole. (see 3.4.1.3.2)"]
[]
["B904.02.02","50W Mono/Poly crystalline solar power supply clamped to the","no",12]
[null,"existing street light pole (see 3.4.1.3.2)"]
["B904.02.03","Connection and testing of stations ","no",24]
[]
[]
[]
[]
[]
[]
["TOTAL CARRIED FORWARD",{"$nulls":4},{"$f":"SUM(F2:F67)","v":{"v":0,"d":"R 0.00"}}]
[]
["Signature of person authorised to sign the tender:",{"$nulls":3},"Date"]

{"sheet":"Summary","index":8,"n_rows":28,"n_cols":4,"rows_kept":28,"merged":[[0,0,0,2],[13,0,13,1],[15,0,15,1],[16,0,16,1],[18,0,18,1],[19,0,19,1],[20,0,20,1],[21,0,21,1],[22,0,22,1],[23,0,23,1],[24,0,24,1],[25,0,25,1],[27,0,27,1],[28,0,28,1]]}
["SUMMARY OF PRICING SCHEDULE"]
["SECTION","DESCRIPTION","AMOUNT"]
[]
["SERIES 0","GENERAL   "]
["001","General Requirements and Charges"]
["002","Office Accommodation"]
["SERIES 1 ","ANCILLARY WORK"]
["101","Site Clearing and Grubbing"]
["102","Accommodation of Traffic"]
["B107","Dayworks"]
["SERIES 9","QUALITY CONTROL"]
["903","Testing"]
["904","Construction of Traffic Monitoring Sites"]
["TOTAL SCHEDULE OF PRICES",null,{"$f":"SUM(C3:C12)","v":{"v":0,"d":"R0.00"}}]
[]
["Signature of person authorised to sign the tender:"]
[]
[]
["DESCRIPTION",null,"AMOUNT"]
[]
["TOTAL OF SCHEDULED PRICES",null,{"$f":"C14","v":{"v":0,"d":"R0.00"}}]
[{"$f":"CONCATENATE(\"Add \",TEXT(D22,\"0.00\"),\"% for contingencies\")","v":"Add 10.00% for contingencies"},null,{"$f":"C21*0.1","v":{"v":0,"d":"R0.00"}},10]
["SUBTOTAL",null,{"$f":"C21+C22","v":{"v":0,"d":"R0.00"}}]
[{"$f":"CONCATENATE(\"Add \",TEXT(D24,\"0.00\"),\"% VAT\")","v":"Add 15.00% VAT"},null,{"$f":"C23*0.15","v":{"v":0,"d":"R0.00"}},15]
[]
["CONTRACT PRICE CARRIED FORWARD TO FORM OF OFFER",null,{"$f":"C23+C24","v":{"v":0,"d":"R0.00"}}]
[]
["Signature of person authorised to sign the tender:",null,"Date"]